fUSD/lending_fUSD_20250607
["ID","MTS","AMOUNT","RATE_DAILY","PERIOD"]
[364903409,1749287453287,-151.0,0.00039324,30]
[364903410,1749287453298,-518.5,0.00039324,30]
[364903411,1749287453309,-500.0,0.00039324,45]
[364903412,1749287453321,-537.6845,0.00039324,30]
[364903413,1749287453331,-500.0,0.00039324,30]
[364903414,1749287453341,-557.5788265,0.00039324,30]
[364903415,1749287453352,-151.0,0.00039324,30]
[364903416,1749287453363,-500.0,0.00039324,31]
[364903417,1749287453373,-578.20924308,0.00039324,30]
[364903418,1749287453384,-151.0,0.00039324,31]
[364903419,1749287453395,-151.0,0.00039324,30]
[364903420,1749287453406,-500.0,0.00039324,45]
[364903421,1749287453416,-599.60298507,0.00039324,30]
[364903422,1749287453427,-151.0,0.00039324,45]
[364903423,1749287453437,-151.0,0.00039324,31]
[364903424,1749287453448,-621.78829552,0.00039324,30]
[364903425,1749287453460,-151.0,0.00039324,45]
[364903426,1749287453471,-644.79446245,0.00039324,30]
[364903427,1749287453482,-500.0,0.00039324,30]
[364903428,1749287453492,-500.0,0.00039324,31]
[364903429,1749287453503,-500.0,0.00039324,45]
[364903430,1749287453513,-151.0,0.00039324,30]
[364903431,1749287453524,-200.0,0.00039324,30]
[364903432,1749287453534,-151.0,0.00039324,30]
[364903433,1749287453545,-151.0,0.00039324,31]
[364903434,1749287453554,-151.0,0.00039324,45]
[364903435,1749287453564,-300.0,0.00039324,30]
[364903436,1749287453575,-300.0,0.00039324,31]
[364903437,1749287453585,-300.0,0.00039324,45]
[364903438,1749287453595,-480.0,0.00039324,60]
[364903439,1749287453605,-480.0,0.00039324,60]
[364903440,1749287453616,-480.0,0.00039324,60]
[364903441,1749287453626,-480.0,0.00039324,60]
[364903442,1749287453636,-151.0,0.00039325,14]
[364903443,1749287453646,-151.0,0.00039325,14]
[364903444,1749287453656,-291.843249,0.00039325,14]
[364903445,1749287453666,-291.843249,0.00039325,14]
[364903446,1749287453676,-291.843249,0.00039325,14]
[364903447,1749287453686,-291.843249,0.00039325,14]
[364903448,1749287453696,-151.0,0.00039325,14]
[364903449,1749287453706,-151.0,0.00039325,14]
[364903450,1749287453716,-151.0,0.00039325,14]
[364903451,1749287453726,-151.0,0.00039325,14]
[364903452,1749287453736,-151.0,0.00039325,14]
[364903453,1749287453747,-151.0,0.00039325,14]
[364903454,1749287453759,-151.0,0.00039325,14]
[364903455,1749287453775,-151.0,0.00039325,14]
[364903456,1749287453785,-151.0,0.00039325,14]
[364903457,1749287453795,-151.0,0.00039325,14]
[364903458,1749287453804,-151.0,0.00039325,14]
[364903459,1749287453814,-230.922095,0.00039325,14]
[364903460,1749287453824,-151.0,0.00039325,14]
[364903461,1749287453834,-151.0,0.00039325,14]
[364903462,1749287453846,-200.0,0.00039325,2]
[364903463,1749287453862,-71648.3183124,0.00039325,2]
[364903464,1749287453873,-973954.4277032,0.00039325,2]
[364903465,1749287453883,-200.0,0.00039325,2]
[364903466,1749287453894,-162.98475458,0.00039339,2]
[364903467,1749287453907,-226.30807833,0.0003934,2]
[364903468,1749287453919,-28865.9128588,0.00039341,2]
[364903469,1749287453931,-4179.859928,0.000394,30]
[364903470,1749287453941,-480.0,0.00039419,60]
[364903471,1749287453952,-47614.84120915,0.0003942,2]
[364903472,1749287453964,-582.02,0.00039439,120]
[364903473,1749287453973,-225353.04,0.0003944,30]
[364903474,1749287453984,-1500.0,0.0003944,31]
[364903475,1749287453995,-151.0,0.0003944,14]
[364903476,1749287454006,-151.0,0.0003944,14]
[364903477,1749287454016,-205.49714,0.0003944,14]
[364903478,1749287454026,-205.49714,0.0003944,14]
[364903479,1749287454036,-151.0,0.0003944,14]
[364903480,1749287454046,-151.0,0.0003944,14]
[364903481,1749287454057,-162.693074,0.0003944,14]
[364903482,1749287454067,-151.0,0.0003944,14]
[364903483,1749287454078,-162.693074,0.0003944,14]
[364903484,1749287454090,-307.314938,0.0003944,14]
[364903485,1749287454099,-307.314938,0.0003944,14]
[364903486,1749287454110,-150.0,0.00039444,120]
[364903487,1749287454120,-296.44,0.00039492,2]
[364903488,1749287454131,-1000.0,0.000395,2]
[364903489,1749287454141,-1000.0,0.000395,90]
[364903490,1749287454152,-345.65,0.000395,14]
[364903491,1749287454163,-988.57508398,0.000395,2]
[364903492,1749287454173,-480.0,0.00039518,60]
[364903493,1749287454183,-151.0,0.00039519,14]
[364903494,1749287454193,-151.0,0.00039519,14]
[364903495,1749287454204,-151.0,0.00039519,14]
[364903496,1749287454215,-151.0,0.00039519,14]
[364903497,1749287454226,-151.0,0.00039519,14]
[364903498,1749287454236,-232.622616,0.00039519,14]
[364903499,1749287454246,-280.850677,0.00039519,14]
[364903500,1749287454257,-280.850677,0.00039519,14]
[364903501,1749287454268,-280.850677,0.00039519,14]
[364903502,1749287454280,-280.850677,0.00039519,14]
[364903503,1749287454291,-280.850677,0.00039519,14]
[364903504,1749287454302,-280.850677,0.00039519,14]
[364903505,1749287454312,-280.850677,0.00039519,14]
[364903506,1749287454323,-280.850677,0.00039519,14]
[364903507,1749287454334,-280.850677,0.00039519,14]
[364903508,1749287454344,-280.850677,0.00039519,14]
[364903509,1749287454354,-280.850677,0.00039519,14]
[364903510,1749287454368,-280.850677,0.00039519,14]
[364903511,1749287454378,-280.850677,0.00039519,14]
[364903512,1749287454389,-280.850673,0.00039519,14]
[364903513,1749287454399,-151.0,0.00039519,14]
[364903514,1749287454410,-151.0,0.00039519,14]
[364903515,1749287454421,-151.0,0.00039519,14]
[364903516,1749287454431,-151.0,0.00039519,14]
[364903517,1749287454442,-151.0,0.00039519,14]
[364903518,1749287454452,-151.0,0.00039519,14]
[364903519,1749287454462,-151.0,0.00039519,14]
[364903520,1749287454474,-151.0,0.00039519,14]
[364903521,1749287454484,-151.0,0.00039519,14]
[364903522,1749287454496,-171.882811,0.00039519,14]
[364903523,1749287454506,-171.882811,0.00039519,14]
[364903524,1749287454516,-171.882811,0.00039519,14]
[364903525,1749287454526,-171.882811,0.00039519,14]
[364903526,1749287454536,-171.882811,0.00039519,14]
[364903527,1749287454546,-171.882811,0.00039519,14]
[364903528,1749287454555,-171.882811,0.00039519,14]
[364903529,1749287454565,-171.882811,0.00039519,14]
[364903530,1749287454574,-171.882811,0.00039519,14]
[364903531,1749287454584,-171.882817,0.00039519,14]
[364903532,1749287454593,-151.0,0.00039519,14]
[364903533,1749287454603,-151.0,0.00039519,14]
[364903534,1749287454613,-151.0,0.00039519,14]
[364903535,1749287454623,-151.0,0.00039519,14]
[364903536,1749287454633,-151.0,0.00039519,14]
[364903537,1749287454643,-246.434752,0.00039519,14]
[364903538,1749287454653,-572.91785,0.00039519,14]
[364903539,1749287454664,-151.0,0.00039519,14]
[364903540,1749287454674,-151.0,0.00039519,14]
[364903541,1749287454684,-151.0,0.00039519,14]
[364903542,1749287454694,-572.91785,0.00039519,14]
[364903543,1749287454704,-572.91785,0.00039519,14]
[364903544,1749287454714,-151.0,0.00039519,14]
[364903545,1749287454723,-572.91785,0.00039519,14]
[364903546,1749287454733,-151.0,0.00039519,14]
[364903547,1749287454743,-151.0,0.00039519,14]
[364903548,1749287454753,-572.91785,0.00039519,14]
[364903549,1749287454767,-151.0,0.00039519,14]
[364903550,1749287454777,-151.0,0.00039519,14]
[364903551,1749287454787,-572.91785,0.00039519,14]
[364903552,1749287454797,-572.91785,0.00039519,14]
[364903553,1749287454806,-249.166087,0.00039519,14]
[364903554,1749287454816,-572.91785,0.00039519,14]
[364903555,1749287454826,-572.91785,0.00039519,14]
[364903556,1749287454837,-572.917847,0.00039519,14]
[364903557,1749287454847,-229.208143,0.00039519,14]
[364903558,1749287454857,-205.49714,0.00039519,14]
[364903559,1749287454868,-205.49714,0.00039519,14]
[364903560,1749287454881,-205.49714,0.00039519,14]
[364903561,1749287454891,-205.497141,0.00039519,14]
[364903562,1749287454901,-151.0,0.00039519,14]
[364903563,1749287454912,-151.0,0.00039519,14]
[364903564,1749287454922,-151.0,0.00039519,14]
[364903565,1749287454933,-151.0,0.00039519,14]
[364903566,1749287454944,-162.693074,0.00039519,14]
[364903567,1749287454954,-162.693074,0.00039519,14]
[364903568,1749287454965,-151.0,0.00039519,14]
[364903569,1749287454976,-211.937417,0.00039519,14]
[364903570,1749287454986,-162.693074,0.00039519,14]
[364903571,1749287454997,-162.693078,0.00039519,14]
[364903572,1749287455008,-307.314938,0.00039519,14]
[364903573,1749287455020,-307.314938,0.00039519,14]
[364903574,1749287455029,-307.314938,0.00039519,14]
[364903575,1749287455040,-307.314931,0.00039519,14]
[364903576,1749287455050,-151.0,0.00039519,14]
[364903577,1749287455060,-151.0,0.00039519,14]
[364903578,1749287455071,-151.0,0.00039519,14]
[364903579,1749287455082,-151.0,0.00039519,14]
[364903580,1749287455092,-185.707612,0.00039519,14]
[364903581,1749287455103,-185.707612,0.00039519,14]
[364903582,1749287455113,-168.948959,0.00039519,14]
[364903583,1749287455123,-196.779148,0.00039519,14]
[364903584,1749287455133,-196.779148,0.00039519,14]
[364903585,1749287455144,-151.0,0.00039519,14]
[364903586,1749287455155,-1294.329855,0.00039519,14]
[364903587,1749287455166,-1294.329855,0.00039519,14]
[364903588,1749287455177,-582.02,0.00039561,120]
[364903589,1749287455187,-582.02,0.00039561,120]
[364903590,1749287455198,-582.02,0.00039561,120]
[364903591,1749287455208,-582.02,0.00039561,120]
[364903592,1749287455218,-582.10025075,0.00039561,120]
[364903593,1749287455229,-151.0,0.00039562,14]
[364903594,1749287455241,-151.0,0.00039562,14]
[364903595,1749287455251,-166.231929,0.00039562,14]
[364903596,1749287455262,-151.0,0.00039562,14]
[364903597,1749287455273,-205.319808,0.00039562,14]
[364903598,1749287455284,-151.0,0.00039562,14]
[364903599,1749287455294,-151.0,0.00039562,14]
[364903600,1749287455306,-151.0,0.00039562,14]
[364903601,1749287455317,-270.478349,0.00039562,14]
[364903602,1749287455327,-151.0,0.00039562,14]
[364903603,1749287455338,-151.0,0.00039562,14]
[364903604,1749287455348,-151.0,0.00039562,14]
[364903605,1749287455358,-151.0,0.00039562,14]
[364903606,1749287455369,-151.0,0.00039562,14]
[364903607,1749287455380,-151.0,0.00039562,14]
[364903608,1749287455390,-156.804286,0.00039562,14]
[364903609,1749287455401,-252.054121,0.00039562,14]
[364903610,1749287455411,-252.054121,0.00039562,14]
[364903611,1749287455422,-252.054121,0.00039562,14]
[364903612,1749287455433,-252.054126,0.00039562,14]
[364903613,1749287455443,-151.0,0.00039562,14]
[364903614,1749287455454,-151.0,0.00039562,14]
[364903615,1749287455464,-151.0,0.00039562,14]
[364903616,1749287455474,-586.479902,0.00039562,14]
[364903617,1749287455486,-586.479902,0.00039562,14]
[364903618,1749287455497,-48174.56715749,0.00039562,2]
[364903619,1749287455507,-48174.56715749,0.00039562,2]
[364903620,1749287455517,-48174.56715749,0.00039562,2]
[364903621,1749287455529,-480.0,0.0003958,60]
[364903622,1749287455540,-151.0,0.00039581,14]
[364903623,1749287455550,-151.0,0.00039581,14]
[364903624,1749287455561,-320.98768156,0.00039584,2]
[364903625,1749287455571,-5222.35,0.000396,14]
[364903626,1749287455581,-200.0,0.000396,14]
[364903627,1749287455592,-230.32,0.00039654,2]
[364903628,1749287455603,-150.0,0.00039654,2]
[364903629,1749287455615,-233.37972,0.00039685,2]
[364903630,1749287455865,-152.0,0.00039699,6]
[364903631,1749287455880,-152.0,0.00039699,5]
[364903632,1749287455891,-55971.88,0.000397,14]
[364903633,1749287455900,-200.0,0.000397,14]
[364903634,1749287455910,-150.0,0.00039709,120]
[364903635,1749287455920,-200.0,0.00039718,2]
[364903636,1749287455930,-200.0,0.00039718,2]
[364903637,1749287455939,-1000.0,0.00039748,31]
[364903638,1749287455949,-419.30740644,0.0003975,30]
[364903639,1749287455959,-205.0,0.0003979,11]
[364903640,1749287455969,-151.0,0.00039799,14]
[364903641,1749287455979,-151.0,0.00039799,14]
[364903642,1749287455990,-151.0,0.00039799,14]
[364903643,1749287455999,-209.089398,0.00039799,14]
[364903644,1749287456010,-152.724614,0.00039799,14]
[364903645,1749287456020,-200.0,0.000398,14]
[364903646,1749287456030,-226.30807831,0.0003982,2]
[364903647,1749287456042,-1641.34266332,0.00039823,2]
[364903648,1749287456053,-27280.74931046,0.00039823,2]
[364903649,1749287456063,-196.71279906,0.00039824,2]
[364903650,1749287456074,-51993.70300262,0.00039824,15]
[364903651,1749287456083,-7000.0,0.0003988,2]
[364903652,1749287456094,-1500.0,0.0003989,31]
[364903653,1749287456104,-1112.75268636,0.0003989,2]
[364903654,1749287456114,-1286.83460645,0.000399,120]
[364903655,1749287456125,-1000.0,0.000399,7]
[364903656,1749287456136,-200.0,0.000399,14]
[364903657,1749287456146,-4142.63952566,0.00039924,7]
[364903658,1749287456155,-4196674.23025425,0.00039924,30]
[364903659,1749287456165,-1006377.46068358,0.00039924,30]
[364903660,1749287456175,-62680.09133556,0.00039924,30]
[364903661,1749287456185,-6800.50241345,0.00039924,4]
[364903662,1749287456195,-5218.8425386,0.00039924,4]
[364903663,1749287456205,-2000.22142605,0.00039924,2]
[364903664,1749287456215,-739.52649433,0.00039924,120]
[364903665,1749287456225,-10000.0,0.00039924,120]
[364903666,1749287456235,-162.0,0.00039924,120]
[364903667,1749287456246,-209.4,0.00039924,30]
[364903668,1749287456256,-209.4,0.00039924,30]
[364903669,1749287456266,-160.24689034,0.00039924,60]
[364903670,1749287456277,-159.0,0.00039924,120]
[364903671,1749287456287,-54004.65088333,0.00039924,60]
[364903672,1749287456298,-100000.0,0.00039924,14]
[364903673,1749287456309,-221.35031258,0.00039924,91]
[364903674,1749287456318,-247.86798016,0.00039924,120]
[364903675,1749287456328,-289.49628484,0.00039924,30]
[364903676,1749287456339,-157.33280309,0.00039924,120]
[364903677,1749287456348,-344.20688591,0.00039924,120]
[364903678,1749287456358,-1559.9781153,0.00039924,120]
[364903679,1749287456367,-167.33786466,0.00039924,30]
[364903680,1749287456377,-1924.62337252,0.00039924,30]
[364903681,1749287456387,-365.82661067,0.00039924,120]
[364903682,1749287456398,-4927.20553466,0.00039924,2]
[364903683,1749287456409,-1490.09335222,0.00039924,30]
[364903684,1749287456419,-8223.83395767,0.00039924,30]
[364903685,1749287456429,-1228.79872482,0.00039924,120]
[364903686,1749287456438,-958.2005441,0.00039924,120]
[364903687,1749287456448,-3274.4305149,0.00039924,30]
[364903688,1749287456458,-7103.0,0.00039924,30]
[364903689,1749287456467,-322.0,0.00039924,120]
[364903690,1749287456477,-1000000.0,0.00039924,30]
[364903691,1749287456486,-3703.16197233,0.00039924,120]
[364903692,1749287456495,-553.0,0.00039924,120]
[364903693,1749287456505,-592141.0,0.00039924,30]
[364903694,1749287456515,-184.844,0.00039924,120]
[364903695,1749287456524,-7621.2451675,0.00039924,120]
[364903696,1749287456534,-3651.23801173,0.00039924,120]
[364903697,1749287456543,-2907946.37490321,0.00039924,30]
[364903698,1749287456557,-61162.18218285,0.00039924,2]
[364903699,1749287456567,-981.0,0.00039924,120]
[364903700,1749287456576,-15967.05792919,0.00039924,30]
[364903701,1749287456585,-3139647.75394835,0.00039924,30]
[364903702,1749287456595,-303788.60788692,0.00039924,7]
[364903703,1749287456605,-233.16865405,0.00039924,120]
[364903704,1749287456614,-1364.49636237,0.00039924,120]
[364903705,1749287456623,-4068.21643324,0.00039924,2]
[364903706,1749287456633,-5000.0,0.00039924,30]
[364903707,1749287456643,-5000.0,0.00039924,120]
[364903708,1749287456652,-150.0,0.00039924,30]
[364903709,1749287456661,-209.4,0.00039924,30]
[364903710,1749287456670,-1000.0,0.00039924,30]
[364903711,1749287456683,-1000.0,0.00039924,60]
[364903712,1749287456693,-1000.0,0.00039924,60]
[364903713,1749287456702,-3932.0,0.00039924,31]
[364903714,1749287456711,-7865.0,0.00039924,31]
[364903715,1749287456721,-3932.0,0.00039924,31]
[364903716,1749287456730,-3932.0,0.00039924,31]
[364903717,1749287456739,-3932.0,0.00039924,31]
[364903718,1749287456749,-5599.0,0.00039924,31]
[364903719,1749287456758,-541.75552681,0.00039924,60]
[364903720,1749287456771,-5599.0,0.00039924,31]
[364903721,1749287456780,-5599.0,0.00039924,31]
[364903722,1749287456790,-5599.0,0.00039924,31]
[364903723,1749287456799,-5600.0,0.00039924,31]
[364903724,1749287456810,-5599.0,0.00039924,31]
[364903725,1749287456819,-1000.0,0.00039924,60]
[364903726,1749287456828,-155.154,0.00039924,2]
[364903727,1749287456838,-1000.0,0.00039924,60]
[364903728,1749287456847,-1000.0,0.00039924,120]
[364903729,1749287456857,-1000.0,0.00039924,60]
[364903730,1749287456866,-1000.0,0.00039924,30]
[364903731,1749287456875,-375.47537215,0.00039924,2]
[364903732,1749287456885,-1000.0,0.00039924,30]
[364903733,1749287456895,-1000.0,0.00039924,30]
[364903734,1749287456904,-1000.0,0.00039924,30]
[364903735,1749287456914,-1000.0,0.00039924,30]
[364903736,1749287456923,-1000.0,0.00039924,30]
[364903737,1749287456934,-1000.0,0.00039924,30]
[364903738,1749287456943,-1000.0,0.00039924,30]
[364903739,1749287456952,-1000.0,0.00039924,30]
[364903740,1749287456962,-1000.0,0.00039924,30]
[364903741,1749287456971,-1000.0,0.00039924,30]
[364903742,1749287456980,-1000.0,0.00039924,30]
[364903743,1749287456990,-1000.0,0.00039924,30]
[364903744,1749287456999,-822.74636411,0.00039924,30]
[364903745,1749287457009,-1000.0,0.00039924,30]
[364903746,1749287457019,-1000.0,0.00039924,30]
[364903747,1749287457028,-1000.0,0.00039924,30]
[364903748,1749287457039,-302.45631896,0.00039924,30]
[364903749,1749287457048,-807.09512308,0.00039924,30]
[364903750,1749287457058,-1000.0,0.00039924,30]
[364903751,1749287457067,-150.0,0.00039924,2]
[364903752,1749287457076,-1000.0,0.00039924,120]
[364903753,1749287457085,-1000.0,0.00039924,60]
[364903754,1749287457095,-1000.0,0.00039924,30]
[364903755,1749287457104,-1000.0,0.00039924,60]
[364903756,1749287457114,-1000.0,0.00039924,60]
[364903757,1749287457124,-2998.44702818,0.00039924,47]
[364903758,1749287457134,-1078.0,0.00039924,30]
[364903759,1749287457143,-1078.0,0.00039924,30]
[364903760,1749287457153,-1078.0,0.00039924,30]
[364903761,1749287457162,-1078.0,0.00039924,30]
[364903762,1749287457172,-1078.0,0.00039924,30]
[364903763,1749287457181,-3044.31350845,0.00039924,120]
[364903764,1749287457191,-14673.76335006,0.00039924,120]
[364903765,1749287457202,-350.0,0.00039924,30]
[364903766,1749287457211,-1005.82540951,0.0003997,15]
[364903767,1749287457220,-150.0,0.00039993,120]
[364903768,1749287457230,-480.0,0.00039999,60]
[364903769,1749287457239,-391.50294687,0.00039999,60]
[364903770,1749287457249,-50000.0,0.0004,40]
[364903771,1749287457259,-90000.0,0.0004,10]
[364903772,1749287457268,-291.96492193,0.0004,10]
[364903773,1749287457278,-1000.0,0.0004,14]
[364903774,1749287457287,-1000.0,0.0004,2]
[364903775,1749287457297,-593.71333394,0.0004,2]
[364903776,1749287457306,-37222.88336163,0.0004,2]
[364903777,1749287457316,-16717.20271213,0.0004,2]
[364903778,1749287457326,-381.1363519,0.0004,2]
[364903779,1749287457335,-5099.04242466,0.0004,2]
[364903780,1749287457345,-213.61124753,0.0004,2]
[364903781,1749287457354,-600.0,0.0004,14]
[364903782,1749287457363,-410.60838177,0.0004,7]
[364903783,1749287457373,-41456.57203118,0.0004,5]
[364903784,1749287457382,-950.9201187,0.0004,7]
[364903785,1749287457391,-1316.34086469,0.0004,10]
[364903786,1749287457402,-2185.892041,0.0004,30]
[364903787,1749287457411,-3845.41756597,0.0004,30]
[364903788,1749287457421,-8600.0,0.0004,30]
[364903789,1749287457430,-150.0,0.0004,2]
[364903790,1749287457440,-861.92,0.0004,5]
[364903791,1749287457449,-10000.00379181,0.0004,5]
[364903792,1749287457458,-1105.06063083,0.0004,30]
[364903793,1749287457469,-13000.0,0.0004,30]
[364903794,1749287457479,-261.93798998,0.0004,30]
[364903795,1749287457488,-5000.0,0.0004,2]
[364903796,1749287457498,-466.38743938,0.0004,2]
[364903797,1749287457507,-943.09560652,0.0004,30]
[364903798,1749287457519,-2029.75006081,0.0004,5]
[364903799,1749287457529,-150.0,0.0004,30]
[364903800,1749287457539,-50000.0,0.0004,10]
[364903801,1749287457550,-50000.0,0.0004,15]
[364903802,1749287457559,-50000.0,0.0004,6]
[364903803,1749287457569,-50000.0,0.0004,4]
[364903804,1749287457578,-348.1590236,0.0004,30]
[364903805,1749287457588,-198.66676502,0.0004,120]
[364903806,1749287457599,-1000.0,0.0004,120]
[364903807,1749287457609,-192.50748833,0.0004,120]
[364903808,1749287457621,-1500.0,0.0004,120]
[364903809,1749287457631,-745.43145551,0.0004,60]
[364903810,1749287457640,-205.0,0.0004,120]
[364903811,1749287457650,-250.0,0.0004,10]
[364903812,1749287457659,-982.53489582,0.0004,20]
[364903813,1749287457669,-1000.0,0.0004,120]
[364903814,1749287457678,-1000.0,0.0004,120]
[364903815,1749287457688,-1000.0,0.0004,120]
[364903816,1749287457698,-1000.0,0.0004,120]
[364903817,1749287457709,-1000.34796683,0.0004,10]
[364903818,1749287457720,-3558.953143,0.0004,120]
[364903819,1749287457731,-404794.77507782,0.0004,4]
[364903820,1749287457741,-100434.42,0.0004,30]
[364903821,1749287457751,-18525.01240499,0.0004,30]
[364903822,1749287457761,-10146.74110748,0.0004,2]
[364903823,1749287457776,-1700.0,0.0004,120]
[364903824,1749287457787,-966.43168913,0.0004,30]
[364903825,1749287457796,-391.0,0.0004,120]
[364903826,1749287457807,-7155.3179407,0.0004,30]
[364903827,1749287457816,-1800.0,0.0004,41]
[364903828,1749287457826,-719.38434378,0.0004,120]
[364903829,1749287457835,-5000.0,0.0004,25]
[364903830,1749287457847,-1000.0,0.0004,10]
[364903831,1749287457856,-1000.0,0.0004,10]
[364903832,1749287457866,-1000.0,0.0004,10]
[364903833,1749287457876,-1000.0,0.0004,10]
[364903834,1749287457886,-1000.0,0.0004,10]
[364903835,1749287457897,-1000.0,0.0004,10]
[364903836,1749287457907,-1000.0,0.0004,10]
[364903837,1749287457917,-1000.0,0.0004,10]
[364903838,1749287457927,-1000.0,0.0004,10]
[364903839,1749287457938,-1000.0,0.0004,10]
[364903840,1749287457947,-1000.0,0.0004,10]
[364903841,1749287457958,-1000.0,0.0004,10]
[364903842,1749287457968,-1000.0,0.0004,10]
[364903843,1749287457978,-1000.0,0.0004,10]
[364903844,1749287457987,-1000.0,0.0004,10]
[364903845,1749287457997,-1000.0,0.0004,10]
[364903846,1749287458006,-1000.0,0.0004,10]
[364903847,1749287458016,-1000.0,0.0004,10]
[364903848,1749287458026,-1000.0,0.0004,10]
[364903849,1749287458036,-1000.0,0.0004,10]
[364903850,1749287458046,-1000.0,0.0004,10]
[364903851,1749287458056,-1000.0,0.0004,10]
[364903852,1749287458065,-1000.0,0.0004,10]
[364903853,1749287458075,-1000.0,0.0004,10]
[364903854,1749287458085,-1000.0,0.0004,10]
[364903855,1749287458096,-1000.0,0.0004,10]
[364903856,1749287458106,-1000.0,0.0004,10]
[364903857,1749287458116,-1227.49747496,0.0004,10]
[364903858,1749287458126,-345.65,0.0004,14]
[364903859,1749287458192,-11044.0,0.0004,20]
[364903860,1749287458202,-1649.96915693,0.0004,30]
[364903861,1749287458212,-445.0,0.0004,120]
[364903862,1749287458221,-151.0,0.0004,14]
[364903863,1749287458230,-151.0,0.0004,14]
[364903864,1749287458239,-151.0,0.0004,14]
[364903865,1749287458248,-151.0,0.0004,14]
[364903866,1749287458257,-151.0,0.0004,14]
[364903867,1749287458266,-151.0,0.0004,14]
[364903868,1749287458276,-151.0,0.0004,14]
[364903869,1749287458285,-151.0,0.0004,14]
[364903870,1749287458295,-151.0,0.0004,14]
[364903871,1749287458304,-151.0,0.0004,14]
[364903872,1749287458314,-151.0,0.0004,14]
[364903873,1749287458323,-151.0,0.0004,14]
[364903874,1749287458333,-183.92822,0.0004,14]
[364903875,1749287458343,-183.92822,0.0004,14]
[364903876,1749287458352,-518.633256,0.0004,15]
[364903877,1749287458362,-1094.357078,0.0004,14]
[364903878,1749287458371,-354.436695,0.0004,14]
[364903879,1749287458381,-1094.357078,0.0004,14]
[364903880,1749287458391,-354.436695,0.0004,14]
[364903881,1749287458400,-184.590968,0.0004,14]
[364903882,1749287458409,-184.590968,0.0004,14]
[364903883,1749287458418,-151.0,0.0004,14]
[364903884,1749287458428,-151.0,0.0004,14]
[364903885,1749287458437,-151.0,0.0004,14]
[364903886,1749287458447,-652.236566,0.0004,14]
[364903887,1749287458456,-151.0,0.0004,14]
[364903888,1749287458466,-652.236566,0.0004,14]
[364903889,1749287458475,-151.0,0.0004,14]
[364903890,1749287458485,-402.907868,0.0004,14]
[364903891,1749287458495,-402.907868,0.0004,14]
[364903892,1749287458504,-151.0,0.0004,14]
[364903893,1749287458514,-299.428056,0.0004,14]
[364903894,1749287458523,-151.0,0.0004,14]
[364903895,1749287458533,-151.85797,0.0004,14]
[364903896,1749287458542,-1313.664653,0.0004,14]
[364903897,1749287458552,-151.0,0.0004,14]
[364903898,1749287458562,-1313.664653,0.0004,14]
[364903899,1749287458571,-151.0,0.0004,14]
[364903900,1749287458581,-151.0,0.0004,14]
[364903901,1749287458590,-299.643866,0.0004,14]
[364903902,1749287458600,-855.267624,0.0004,14]
[364903903,1749287458610,-299.643866,0.0004,14]
[364903904,1749287458619,-855.267624,0.0004,14]
[364903905,1749287458629,-151.0,0.0004,14]
[364903906,1749287458639,-151.0,0.0004,14]
[364903907,1749287458648,-155.562117,0.0004,14]
[364903908,1749287458658,-155.562117,0.0004,14]